bitfinex-derivatives/quotes_SOLF0:USTF0_20250312
["timestamp","ask_amount","ask_price","bid_price","bid_amount"]
[1741802961994,0.05717354,124.1,124.07,0.05517135]
[1741802962292,0.05717354,124.1,124.08,8.061]
[1741802962488,0.05717354,124.1,124.07,33.93517135]
[1741802962689,33.88,124.15,124.08,21.04220327]
[1741802962893,33.88,124.15,124.12,8.0586]
[1741802963192,54.92220327,124.18,124.1,54.92220327]
[1741802963390,33.88,124.18,124.1,54.92220327]
[1741802963587,10.0521,124.19,124.1,54.92220327]
[1741802963783,0.05150839,124.15,124.13,0.05791778]
[1741802963985,0.05150839,124.15,124.14,8.0576]
[1741802965088,33.88,124.2,124.17,8.0553]
[1741802966092,33.88,124.2,124.17,8.11332901]
[1741802966991,33.86,124.23,124.17,0.05802901]
[1741802967392,33.86,124.23,124.2,8.0531]
[1741802967897,33.86,124.23,124.2,0.05246627]
[1741802968591,33.63772186,124.25,124.2,0.05246627]
[1741802968786,33.86,124.24,124.2,8.10606627]
[1741802969196,33.86,124.24,124.2,0.05246627]
[1741802969891,33.86,124.25,124.2,0.05246627]
[1741802970294,33.86,124.26,124.2,0.05246627]
[1741802970697,275.41772186,124.29,124.19,33.86]
[1741802970893,8.051,124.25,124.22,0.05457861]
[1741802971101,33.63772186,124.27,124.22,0.05457861]
[1741802971598,33.63772186,124.25,124.22,0.05457861]
[1741802971799,33.86,124.24,124.22,0.05457861]
[1741802972196,33.63772186,124.23,124.17,2.1767]
[1741802972599,8.0522,124.23,124.17,2.1767]
[1741802972995,33.86,124.24,124.17,2.1767]
[1741802973305,8.10541689,124.22,124.19,0.05373442]
[1741802973500,0.05261689,124.22,124.19,0.05373442]
[1741802973896,8.10541689,124.22,124.19,0.05373442]
[1741802974095,0.05261689,124.22,124.19,0.05373442]
[1741802974402,8.0531,124.21,124.19,0.05373442]
[1741802974796,0.05261689,124.22,124.19,0.05373442]
[1741802974993,8.10531689,124.22,124.19,0.05373442]
[1741802975198,0.05261689,124.22,124.19,0.05373442]
[1741802975399,0.05261689,124.22,124.2,8.0537]
[1741802976004,0.05261689,124.22,124.21,8.0531]
[1741802979901,34.13362186,124.31,124.25,8.0502]
[1741802980108,33.84,124.3,124.25,8.0502]
[1741802980410,8.0482,124.29,124.25,8.0502]
[1741802980610,33.84,124.3,124.25,8.0502]
[1741802980908,33.84,124.3,124.23,2.0014]
[1741802981109,33.84,124.3,124.26,0.05605685]
[1741802981709,33.63772186,124.29,124.26,0.05605685]
[1741802981906,33.63772186,124.29,124.21,8.0527]
[1741802982107,33.63772186,124.27,124.21,8.0527]
[1741802982308,33.82,124.26,124.19,277.4814]
[1741802982709,8.052,124.23,124.19,243.6414]
[1741802982909,33.82,124.26,124.21,8.053]
[1741802983111,0.05340794,124.22,124.21,8.053]
[1741802983311,8.0515,124.24,124.21,8.053]
[1741802983512,0.05309498,124.23,124.21,8.053]
[1741802984511,0.05309498,124.23,124.22,8.0524]
[1741802985418,33.87309498,124.23,124.2,0.057373]
[1741802985811,8.0531,124.21,124.2,0.057373]
[1741802988112,33.87309498,124.23,124.2,0.057373]
[1741802990517,8.0531,124.21,124.2,0.057373]
[1741802995925,33.87309498,124.23,124.2,0.057373]
[1741802996120,8.0529,124.22,124.2,0.057373]
[1741802996325,33.87309498,124.23,124.2,0.057373]
[1741802996629,8.0531,124.21,124.2,0.057373]
[1741802998021,33.87309498,124.23,124.2,0.057373]
[1741802998323,0.05309498,124.23,124.2,0.057373]
[1741802998724,0.05309498,124.23,124.21,8.0531]
[1741802999325,0.05309498,124.23,124.22,8.0524]
[1741803000319,21.00633053,124.3,124.21,56.92593053]
[1741803000528,21.00633053,124.3,124.22,4.157]
[1741803000825,8.049,124.28,124.22,4.157]
[1741803001020,21.00633053,124.32,124.23,21.00633053]
[1741803001229,54.82633053,124.32,124.23,21.00633053]
[1741803001430,29.05123053,124.34,124.25,21.00633053]
[1741803001623,8.0449,124.34,124.27,21.00633053]
[1741803001818,8.0449,124.34,124.28,4.094]
[1741803002022,8.0449,124.34,124.3,8.0469]
[1741803002229,149.72639545,124.38,124.29,21.06569537]
[1741803002429,149.72639545,124.38,124.31,21.00633053]
[1741803002735,8.0431,124.37,124.33,8.0447]
[1741803003023,149.72639545,124.38,124.34,8.0445]
[1741803003230,128.72006492,124.38,124.33,21.00633053]
[1741803003419,128.72006492,124.38,124.35,21.06539156]
[1741803003930,128.72006492,124.38,124.35,0.05906103]
[1741803004327,39.2051767,124.38,124.35,0.05906103]
[1741803004523,8.0399,124.42,124.36,33.8]
[1741803004728,8.0399,124.42,124.36,41.8432]
[1741803005232,41.8383,124.44,124.38,8.10305611]
[1741803005431,33.8,124.44,124.38,0.06135611]
[1741803005633,30.17879515,124.45,124.38,0.06135611]
[1741803005837,30.17879515,124.45,124.39,33.8]
[1741803006329,30.17879515,124.45,124.41,0.0543902]
[1741803006530,30.17879515,124.45,124.42,33.8]
[1741803007524,39.86612381,124.49,124.42,33.8]
[1741803007525,33.51619992,124.49,124.42,33.8]
[1741803007729,33.51619992,124.47,124.41,0.0543902]
[1741803007929,67.31619992,124.47,124.39,33.8]
[1741803008130,33.8,124.47,124.44,0.05834613]
[1741803008527,8.0376,124.45,124.44,0.05834613]
[1741803009531,8.0371,124.46,124.44,0.05834613]
[1741803009731,33.8,124.47,124.44,0.05834613]
[1741803010230,33.78,124.5,124.44,0.05834613]
[1741803010435,33.51619992,124.49,124.44,0.05834613]
[1741803010734,8.0376,124.45,124.44,0.05834613]
[1741803011935,8.0408,124.4,124.38,33.76]
[1741803012134,33.51619992,124.43,124.35,4.156]
[1741803012337,67.27619992,124.43,124.35,4.156]
[1741803012534,8.0396,124.42,124.35,4.156]
[1741803012940,67.27619992,124.43,124.35,4.156]
[1741803013139,0.05282656,124.4,124.37,0.060837]
[1741803013745,0.05282656,124.4,124.37,8.103237]
[1741803014241,0.05282656,124.4,124.37,0.060837]
[1741803015445,0.05282656,124.4,124.38,8.0417]
[1741803015847,0.05282656,124.4,124.37,33.820837]
[1741803016349,33.76,124.47,124.37,67.33703692]
[1741803016549,33.76,124.47,124.37,67.27619992]
[1741803017049,33.76,124.47,124.37,33.76]
[1741803017246,4.1038,124.46,124.37,33.76]
[1741803017544,4.1038,124.46,124.4,0.06167591]
[1741803018143,8.038,124.45,124.4,0.06167591]
[1741803018342,33.51619992,124.45,124.4,0.06167591]
[1741803018543,33.84,124.44,124.4,0.06167591]
[1741803019345,33.84,124.44,124.4,8.10237591]
[1741803019742,33.84,124.45,124.4,8.10237591]
[1741803019946,33.84,124.45,124.4,0.06167591]
[1741803020950,291.0,124.51,124.4,0.06167591]
[1741803021150,33.84,124.47,124.4,0.06167591]
[1741803021351,33.84,124.47,124.43,0.06062714]
[1741803021852,41.8763,124.47,124.43,0.06062714]
[1741803022454,8.0376,124.45,124.43,0.06062714]
[1741803022652,33.84,124.47,124.43,0.06062714]
[1741803023050,8.0385,124.44,124.39,8.0411]
[1741803023553,8.0411,124.4,124.35,8.0438]
[1741803023753,33.78,124.39,124.33,4.0073]
[1741803024351,0.05523173,124.37,124.35,0.05830156]
[1741803024849,0.05523173,124.37,124.36,8.0433]
[1741803025051,33.51619992,124.45,124.35,67.37450148]
[1741803025251,33.8,124.44,124.4,8.0405]
[1741803025753,33.8,124.44,124.35,67.31619992]
[1741803025951,8.0394,124.43,124.35,67.31619992]
[1741803026148,33.8,124.44,124.38,0.05254664]
[1741803026354,0.02236986,124.4,124.38,0.05254664]
[1741803027251,33.8,124.44,124.38,33.85254664]
[1741803027457,4.3267,124.47,124.39,4.1701]
[1741803027657,33.8,124.46,124.39,4.1701]
[1741803028059,8.0389,124.43,124.39,4.1701]
[1741803028252,67.31619992,124.46,124.39,4.1701]
[1741803028451,67.31619992,124.46,124.4,0.05742567]
[1741803029157,8.0395,124.42,124.4,0.05742567]
[1741803029758,67.31619992,124.46,124.4,0.05742567]
[1741803030660,33.51619992,124.44,124.4,0.05742567]
[1741803030857,33.76,124.43,124.4,0.05742567]
[1741803031457,33.51619992,124.42,124.34,4.2232]
[1741803031762,33.51619992,124.42,124.35,8.0437]
[1741803032659,0.05651296,124.4,124.37,0.05218833]
[1741803033167,33.81651296,124.4,124.37,0.05218833]
[1741803033960,8.0421,124.38,124.37,0.05218833]
[1741803034562,33.81651296,124.4,124.37,0.05218833]
[1741803034767,8.0417,124.39,124.37,0.05218833]
[1741803035060,33.81651296,124.4,124.37,0.05218833]
[1741803035462,8.0414,124.39,124.37,0.05218833]
[1741803035663,33.81651296,124.4,124.37,0.05218833]
[1741803035964,33.81651296,124.4,124.38,8.0417]
[1741803036664,33.81651296,124.4,124.37,0.05218833]
[1741803036863,33.81651296,124.4,124.38,8.042]
[1741803037260,0.05651296,124.4,124.39,8.0414]
[1741803037865,8.09771296,124.4,124.37,8.09458833]
[1741803038360,0.05651296,124.4,124.38,8.042]
[1741803038666,0.05651296,124.4,124.39,157.1996865]
[1741803039066,0.05651296,124.4,124.39,165.2410865]
[1741803040964,0.05651296,124.4,124.39,157.1996865]
[1741803042170,0.05651296,124.4,124.39,290.48232247]
[1741803042371,33.76,124.45,124.39,290.48232247]
[1741803042372,67.27751521,124.45,124.39,290.48232247]
[1741803042672,8.0408,124.4,124.39,290.48232247]
[1741803043472,8.0406,124.41,124.39,67.74158566]
[1741803043872,67.27751521,124.45,124.39,67.79896702]
[1741803044071,8.0408,124.4,124.39,67.79896702]
[1741803045976,8.0408,124.4,124.39,0.05738136]
[1741803047273,8.0405,124.41,124.39,0.05738136]
[1741803047867,41.7997,124.42,124.39,8.09848136]
[1741803048071,33.76,124.42,124.39,0.05738136]
[1741803048674,33.76,124.42,124.39,8.09858136]
[1741803049073,8.0402,124.41,124.39,8.09858136]
[1741803049272,17.18712184,124.49,124.4,33.76]
[1741803049573,17.18712184,124.49,124.43,0.05997827]
[1741803049772,17.18712184,124.49,124.44,8.0378]
[1741803050072,2.0854,124.51,124.44,8.0378]
[1741803050275,2.1588,124.5,124.45,8.0372]
[1741803050467,2.1588,124.5,124.46,0.05988605]
[1741803050871,2.1588,124.5,124.46,8.09678605]
[1741803051176,2.1588,124.5,124.46,0.05988605]
[1741803051369,2.0854,124.51,124.46,0.05988605]
[1741803051564,35.8454,124.51,124.46,0.05988605]
[1741803052469,43.70821521,124.54,124.48,8.0352]
[1741803052670,2.1588,124.54,124.46,33.76]
[1741803052870,2.1588,124.54,124.5,0.05736732]
[1741803053068,17.18712184,124.59,124.5,0.05736732]
[1741803053266,4.3178,124.58,124.49,33.76]
[1741803053474,38.0778,124.58,124.54,8.0312]
[1741803053875,38.0778,124.58,124.53,0.05713381]
[1741803054074,4.3178,124.58,124.53,0.05713381]
[1741803054474,33.74,124.59,124.53,0.05713381]
[1741803054677,33.74,124.59,124.55,8.0307]
[1741803054873,33.51751521,124.62,124.52,33.74]
[1741803055079,33.74,124.61,124.56,0.06168154]
[1741803055274,6.431,124.63,124.56,0.06168154]
[1741803055877,210.18712184,124.66,124.56,33.57919675]
[1741803055878,17.18712184,124.66,124.56,33.57919675]
[1741803056180,50.70463705,124.66,124.56,39.68741521]
[1741803056480,33.51751521,124.66,124.6,0.05832836]
[1741803057373,6.3687,124.69,124.63,8.0254]
[1741803057771,40.1087,124.69,124.65,0.05837198]
[1741803058278,6.3687,124.69,124.65,0.05837198]
[1741803058587,33.74,124.71,124.65,0.05837198]
[1741803058877,33.51751521,124.79,124.66,33.51751521]
[1741803059076,2.1896,124.78,124.67,33.72]
[1741803059274,10.2061,124.78,124.71,0.0607321]
[1741803059482,33.72,124.77,124.71,0.0607321]
[1741803059683,0.40009,124.76,124.71,0.0607321]
[1741803063682,8.0191,124.74,124.71,0.0607321]
[1741803063884,33.7,124.73,124.71,0.0607321]
[1741803064285,33.51751521,124.72,124.63,1.9944]
[1741803064881,8.0225,124.69,124.63,1.9944]
[1741803065082,33.7,124.69,124.61,33.7]
[1741803065284,8.023,124.68,124.61,33.7]
[1741803065478,0.05279235,124.66,124.64,0.05152496]
[1741803066688,33.75279235,124.66,124.64,0.05152496]
[1741803067585,33.75279235,124.66,124.52,240.8]
[1741803067784,67.21751521,124.66,124.55,33.7]
[1741803068488,67.21751521,124.66,124.56,33.51751521]
[1741803068894,0.05805192,124.63,124.6,0.05103304]
[1741803069490,8.08445192,124.63,124.6,0.05103304]
[1741803069679,0.05805192,124.63,124.6,0.05103304]
[1741803069881,33.73805192,124.63,124.6,0.05103304]
[1741803070078,33.73805192,124.63,124.52,274.31751521]
[1741803070289,33.51751521,124.62,124.52,240.8]
[1741803070690,33.51751521,124.6,124.52,240.8]
[1741803070893,33.68,124.59,124.52,240.8]
[1741803071385,0.05361699,124.57,124.54,0.06005651]
[1741803074191,0.05361699,124.57,124.54,33.57757172]
[1741803074390,8.0256,124.64,124.54,33.57757172]
[1741803074594,41.7256,124.64,124.56,33.51751521]
[1741803075098,41.7256,124.64,124.58,8.0287]
[1741803075290,41.7257,124.64,124.58,8.0287]
[1741803075495,41.7257,124.64,124.56,33.51751521]
[1741803075695,0.06121856,124.62,124.6,0.05332924]
[1741803076595,4.0469,124.7,124.6,33.57084445]
[1741803076796,33.7,124.67,124.63,8.0254]
[1741803077191,33.7,124.67,124.6,33.51751521]
[1741803077396,33.51751521,124.73,124.62,33.51751521]
[1741803077695,33.7,124.72,124.63,35.7945]
[1741803077898,0.04773661,124.69,124.66,0.05826702]
[1741803078897,33.7,124.76,124.67,33.7]
[1741803079098,2.1228,124.79,124.7,33.51751521]
[1741803079394,8.0159,124.79,124.74,8.0187]
[1741803079598,2.1567,124.81,124.72,33.51751521]
[1741803079804,41.7153,124.8,124.75,8.0177]
[1741803079993,33.7,124.8,124.75,0.05769037]
[1741803080197,33.7,124.83,124.75,0.05769037]
[1741803080396,41.7133,124.83,124.75,0.05769037]
[1741803080598,33.7,124.83,124.74,33.51751521]
[1741803080795,33.7,124.83,124.78,8.07602856]
[1741803080997,33.7,124.83,124.78,7.69913856]
[1741803081195,33.7,124.83,124.76,33.7]
[1741803081795,33.7,124.83,124.76,67.21751521]
[1741803081993,2.0488,124.89,124.8,33.51751521]
[1741803082196,0.05660787,124.81,124.8,67.19751521]
[1741803082400,291.0,124.96,124.8,62.07512142]
[1741803082705,54.05512142,124.87,124.79,8.0155]
[1741803083000,54.05512142,124.85,124.74,33.68]
[1741803083204,8.0144,124.81,124.74,33.68]
[1741803083407,33.66,124.84,124.74,33.68]
[1741803083702,8.0157,124.79,124.76,0.05664105]
[1741803083916,33.66,124.79,124.76,0.05664105]
[1741803084103,33.66,124.79,124.72,2.1216]
[1741803084305,8.0164,124.78,124.76,0.05553742]
[1741803084807,33.66,124.79,124.76,0.05553742]
[1741803085008,8.0164,124.78,124.76,0.05553742]
[1741803085200,240.64,125.01,124.77,33.66]
[1741803085402,8.0131,124.83,124.76,0.05553742]
[1741803085607,87.71512142,124.86,124.74,87.71512142]
[1741803085807,2.0538,124.85,124.78,0.05621796]
[1741803086007,8.0147,124.81,124.78,0.05621796]
[1741803086208,8.0147,124.81,124.74,87.71512142]
[1741803086409,33.66,124.82,124.78,0.05818448]
[1741803086610,33.66,124.82,124.72,2.1216]
[1741803087714,54.05512142,124.81,124.72,2.1216]
[1741803087911,0.05121361,124.78,124.76,0.05819673]
[1741803088106,8.0146,124.81,124.75,33.66]
[1741803088413,87.71512142,124.83,124.7,4.0314]
[1741803088613,8.0174,124.77,124.7,12.0526]
[1741803088809,33.66,124.76,124.7,4.0314]
[1741803089309,0.05838947,124.74,124.72,0.05382763]
[1741803090417,33.66,124.73,124.72,0.05382763]
[1741803091315,0.05838947,124.74,124.72,0.05382763]
[1741803091509,33.66,124.81,124.73,54.05512142]
[1741803091714,41.6744,124.81,124.75,8.0178]
[1741803091917,33.66,124.81,124.74,2.0707]
[1741803092217,10.1868,124.82,124.76,8.0171]
[1741803092418,33.66,124.81,124.74,2.0707]
[1741803092719,8.0168,124.78,124.72,8.0196]
[1741803092919,33.66,124.77,124.7,4.1531]
[1741803093921,0.05349129,124.75,124.73,8.0191]
[1741803094415,0.05349129,124.75,124.72,0.05719746]
[1741803094615,0.05349129,124.75,124.74,8.0189]
[1741803094815,0.05349129,124.75,124.72,0.05719746]
[1741803095712,0.05349129,124.75,124.73,8.0195]
[1741803095914,0.05349129,124.75,124.72,0.05719746]
[1741803096713,0.05349129,124.75,124.73,8.0195]
[1741803097116,0.05349129,124.75,124.72,0.05719746]
[1741803097321,0.05349129,124.75,124.74,8.0189]
[1741803097523,0.05349129,124.75,124.72,0.05719746]
[1741803098319,33.71349129,124.75,124.72,0.05719746]
[1741803098626,8.0189,124.74,124.72,0.05719746]
[1741803099124,8.0195,124.73,124.72,0.05719746]
[1741803099319,33.71349129,124.75,124.72,0.05719746]
[1741803099515,8.0192,124.74,124.72,0.05719746]
[1741803100420,33.71349129,124.75,124.72,0.05719746]
[1741803101117,8.0195,124.73,124.72,0.05719746]
[1741803101720,33.71349129,124.75,124.72,0.05719746]
[1741803102023,8.0193,124.74,124.72,0.05719746]
[1741803102418,67.0574301,124.75,124.66,2.0432]
[1741803102621,2.0739,124.74,124.66,2.0432]
[1741803103023,2.0739,124.74,124.67,8.0233]
[1741803103722,8.0216,124.7,124.69,0.05741694]
[1741803104423,33.66,124.71,124.63,90.79487906]
[1741803105019,41.6814,124.71,124.67,8.023]
[1741803105219,41.6814,124.71,124.63,90.79487906]
[1741803105421,41.6814,124.71,124.67,8.0233]
[1741803105719,0.06152437,124.68,124.67,8.0233]
[1741803106319,0.06152437,124.68,124.66,8.08503488]
[1741803106526,0.06152437,124.68,124.66,0.06133488]
[1741803106828,0.06152437,124.68,124.67,8.0234]
[1741803108630,33.66,124.73,124.69,8.0221]
[1741803108929,33.66,124.73,124.64,33.34393881]
[1741803109726,0.05071363,124.7,124.69,8.022]
[1741803109925,0.05071363,124.7,124.64,33.34393881]
[1741803110120,0.05071363,124.7,124.68,0.0613744]
[1741803111733,8.0221,124.69,124.68,0.0613744]
[1741803111923,0.05071363,124.7,124.68,0.0613744]
[1741803113229,33.71071363,124.7,124.68,7.44e-05]
[1741803113432,33.34393881,124.69,124.61,33.51956797]
[1741803113631,2.0463,124.68,124.61,41.54666797]
[1741803113836,33.66,124.67,124.61,41.54666797]
[1741803114328,33.66,124.67,124.61,33.51956797]
[1741803114730,0.06162584,124.65,124.63,0.05236836]
[1741803116239,0.06162584,124.65,124.63,8.07786836]
[1741803116734,0.06162584,124.65,124.64,8.0253]
[1741803116941,33.66,124.7,124.63,33.39630717]
[1741803117137,33.66,124.7,124.64,2.0644]
[1741803117438,8.0225,124.69,124.65,8.0243]
[1741803117628,33.66,124.7,124.64,2.0644]
[1741803118029,41.6819,124.7,124.66,8.0773558]
[1741803118234,0.05370504,124.68,124.66,8.0773558]
[1741803118833,0.05370504,124.68,124.66,0.0534558]
[1741803119241,8.07680504,124.68,124.66,0.0534558]
[1741803119442,0.05370504,124.68,124.66,0.0534558]
[1741803120536,8.0234,124.67,124.66,0.0534558]
[1741803120736,0.05370504,124.68,124.67,8.0234]
[1741803120940,0.05370504,124.68,124.66,0.0534558]
[1741803121138,0.05370504,124.68,124.66,2.2475558]
[1741803121338,0.05370504,124.68,124.66,0.0534558]
[1741803123243,0.05370504,124.68,124.67,8.0234]
[1741803124248,0.05370504,124.68,124.66,0.0534558]
[1741803124848,0.05370504,124.68,124.67,8.0234]
[1741803125146,0.05370504,124.68,124.66,0.0534558]
[1741803125346,0.05370504,124.68,124.66,8.0769558]
[1741803125545,0.05370504,124.68,124.66,0.0534558]
[1741803126049,0.05370504,124.68,124.67,8.0234]
[1741803126645,0.05370504,124.68,124.66,0.0534558]
[1741803128045,0.05370504,124.68,124.67,8.0234]
[1741803128257,0.05370504,124.68,124.66,0.0534558]
[1741803128750,8.0234,124.67,124.66,0.0534558]
[1741803129648,0.05370504,124.68,124.66,0.0534558]
[1741803130243,8.07680504,124.68,124.66,0.0534558]
[1741803130444,0.05370504,124.68,124.66,0.0534558]
[1741803131651,0.05370504,124.68,124.67,8.0234]
[1741803131852,0.05370504,124.68,124.66,0.0534558]
[1741803132048,0.05370504,124.68,124.66,8.0774558]
[1741803132448,0.05370504,124.68,124.66,0.0534558]
[1741803132652,8.07690504,124.68,124.66,0.0534558]
[1741803132949,0.05370504,124.68,124.66,0.0534558]
[1741803133145,0.05370504,124.68,124.67,8.0234]
[1741803133450,0.05370504,124.68,124.66,0.0534558]
[1741803134343,8.0234,124.67,124.66,0.0534558]
[1741803135148,8.07680504,124.68,124.66,0.0534558]
[1741803135853,0.05370504,124.68,124.66,0.0534558]
[1741803136152,8.0234,124.67,124.66,0.0534558]
[1741803137853,41.36393881,124.67,124.59,122.90508257]
[1741803138155,33.34393881,124.65,124.59,122.90508257]
[1741803138341,8.0268,124.62,124.59,122.90508257]
[1741803138746,33.66,124.63,124.59,122.90508257]
[1741803138944,0.05750451,124.62,124.59,122.957996]
[1741803139244,0.05750451,124.62,124.59,130.986196]
[1741803139447,0.05750451,124.62,124.59,122.957996]
[1741803140246,0.05750451,124.62,124.59,0.05291343]
[1741803140648,8.08450451,124.62,124.59,0.05291343]
[1741803140846,0.05750451,124.62,124.59,0.05291343]
[1741803141452,0.05750451,124.62,124.59,8.08111343]
[1741803141647,0.05750451,124.62,124.59,0.05291343]
[1741803142059,0.05750451,124.62,124.61,8.0272]
[1741803142357,0.05750451,124.62,124.59,0.05291343]
[1741803142557,0.05750451,124.62,124.59,8.08111343]
[1741803142957,0.05750451,124.62,124.59,0.05291343]
[1741803143759,0.05750451,124.62,124.6,8.0276]
[1741803144453,0.05750451,124.62,124.61,8.0272]
[1741803144957,20.87223604,124.68,124.59,20.92514947]
[1741803145154,8.0237,124.67,124.59,20.87223604]
[1741803145352,54.53223604,124.68,124.59,20.87223604]
[1741803146152,0.05377953,124.65,124.62,0.05130579]
[1741803146356,8.0257,124.64,124.62,0.05130579]
[1741803146557,0.05377953,124.65,124.62,0.05130579]
[1741803147555,8.07877953,124.65,124.62,8.07780579]
[1741803148059,0.05377953,124.65,124.63,8.0259]
[1741803148260,0.05377953,124.65,124.62,0.05130579]
[1741803148559,0.05377953,124.65,124.63,8.0259]
[1741803149457,0.05377953,124.65,124.62,0.05130579]
[1741803149653,0.05377953,124.65,124.62,8.07760579]
[1741803149956,8.07877953,124.65,124.62,8.07760579]
[1741803151058,0.05377953,124.65,124.62,0.05130579]
[1741803151960,8.07857953,124.65,124.63,8.0258]
[1741803152158,8.07857953,124.65,124.62,0.05130579]
[1741803152561,8.07857953,124.65,124.62,8.07770579]
[1741803152861,0.05377953,124.65,124.62,0.05130579]
[1741803153062,0.05377953,124.65,124.62,8.07780579]
[1741803153360,8.07877953,124.65,124.62,8.07780579]
[1741803153656,131.39416387,124.81,124.62,24.26130579]
[1741803153657,30.23052831,124.74,124.62,24.26130579]
[1741803153858,122.18526387,124.81,124.73,41.74447208]
[1741803154059,122.18526387,124.81,124.8,20.87223604]
[1741803154361,122.18526387,124.81,124.8,63.46723604]
[1741803154565,122.18526387,124.81,124.75,55.57223604]
[1741803154762,122.18526387,124.81,124.79,8.0156]
[1741803154959,122.18526387,124.81,124.77,20.92782673]
[1741803155255,214.3665375,124.82,124.79,55.55223604]
[1741803155558,51.30115783,124.82,124.81,28.88663604]
[1741803155760,26.85125783,124.82,124.81,28.88663604]
[1741803155960,26.85125783,124.82,124.81,8.0144]
[1741803157964,267.90159023,124.83,124.82,8.0137]
[1741803158162,255.58429023,124.83,124.82,41.2853266]
[1741803158359,36.6881,124.91,124.82,33.2716266]
[1741803158661,1.9793,124.88,124.86,8.0107]
[1741803158866,36.6881,124.91,124.84,0.0596438]
[1741803159461,33.2716266,124.9,124.84,0.0596438]
[1741803159965,33.2716266,124.88,124.87,33.51956797]
[1741803160162,33.2716266,124.88,124.87,13.78736797]
[1741803160668,33.2716266,124.9,124.87,13.78736797]
[1741803161562,33.2716266,124.9,124.86,0.05856355]
[1741803161756,33.2716266,124.88,124.86,0.05856355]
[1741803164864,33.2716266,124.88,124.86,8.06916355]
[1741803165467,33.2716266,124.88,124.86,0.05856355]
[1741803165768,33.2716266,124.88,124.79,123.9455146]
[1741803165970,41.2816266,124.88,124.83,8.0127]
[1741803166269,33.2716266,124.88,124.79,123.9455146]
[1741803166464,33.2716266,124.88,124.83,8.0128]
[1741803166660,33.2716266,124.88,124.79,123.9455146]
[1741803166862,33.2716266,124.88,124.84,0.05510189]
[1741803166863,0.05650114,124.87,124.84,0.05510189]
[1741803167167,0.05650114,124.87,124.84,8.06720189]
[1741803167571,0.05650114,124.87,124.84,0.05510189]
[1741803168373,0.05650114,124.87,124.84,8.06730189]
[1741803168670,0.05650114,124.87,124.84,0.05510189]
[1741803169272,0.05650114,124.87,124.85,34.2]
[1741803169477,0.05650114,124.87,124.86,8.0112]
[1741803171273,33.2716266,124.93,124.86,248.50568793]
[1741803171771,33.2716266,124.93,124.86,78.8904591]
[1741803172073,8.0077,124.92,124.88,8.0095]
[1741803172275,67.3916266,124.93,124.86,78.8904591]
[1741803172567,8.0086,124.9,124.89,0.05218984]
[1741803172874,33.2716266,124.91,124.86,46.93579961]
[1741803173172,33.2716266,124.89,124.86,46.93579961]
[1741803173370,41.2812266,124.89,124.86,46.93579961]
[1741803173569,33.2716266,124.89,124.86,46.93579961]
[1741803173768,34.1,124.9,124.86,46.93579961]
[1741803173965,0.05563857,124.89,124.86,46.98772286]
[1741803174572,0.05563857,124.89,124.86,0.05192325]
[1741803175976,0.05563857,124.89,124.87,8.0102]
[1741803176365,0.05563857,124.89,124.86,0.05192325]
[1741803176568,0.05563857,124.89,124.87,8.0105]
[1741803177069,0.05563857,124.89,124.86,8.06262325]
[1741803177275,0.05563857,124.89,124.86,0.05192325]
[1741803177675,0.05563857,124.89,124.87,8.0105]
[1741803178174,0.05563857,124.89,124.88,8.0099]
[1741803178374,0.05563857,124.89,124.86,0.05192325]
[1741803178678,0.05563857,124.89,124.87,8.0102]
[1741803179278,8.06533857,124.89,124.86,8.06282325]
[1741803179672,0.05563857,124.89,124.86,0.05192325]
[1741803179876,8.06523857,124.89,124.86,0.05192325]
[1741803180174,0.05563857,124.89,124.86,0.05192325]
[1741803180476,8.0105,124.87,124.86,0.05192325]
[1741803182174,0.05563857,124.89,124.86,0.05192325]
[1741803182373,20.84697563,124.89,124.86,0.05192325]
[1741803182770,0.05563857,124.89,124.86,0.05192325]
[1741803183169,20.84697563,124.89,124.86,0.05192325]
[1741803183376,20.79133706,124.89,124.86,0.05192325]
[1741803183778,20.79133706,124.91,124.86,0.05192325]
[1741803184377,8.009,124.9,124.86,8.06252325]
[1741803184781,8.009,124.9,124.86,0.05192325]
[1741803185076,20.79133706,124.93,124.87,33.62]
[1741803185475,20.79133706,124.93,124.89,8.06358755]
[1741803185675,8.0076,124.92,124.89,8.06358755]